Cogmind - Beta 17.1 @@@ ROGUE MODE // 2026.08.28 @ 21:30:28 Player: Waax Result: Destroyed by S-10 Pest with Light Assault Rifle Performance ------------- Evolutions (0) 0 Regions Visited (1) 200 Robots Destroyed (13) 65 Value Destroyed (397) 397 Prototype IDs (0) 0 Alien Tech Used (0) 0 Bonus (0) 0 TOTAL SCORE: 662 Bonus ------- None Cogmind --------- Core Integrity 0/250 Matter 261/300 Energy 68/100 System Corruption 0% Temperature Warm (158) Movement Core (700) Ox13 Location -10/Materials Parts ------- > --- POWER (1) -------- (None) > --- PROPULSION (2) --- (None) > --- UTILITY (2) ------ High-capacity Storage Unit > --- WEAPON (2) ------- (None) > --- INVENTORY (20) --- Light Ion Engine Light Ion Engine Wheel Wheel Hover Unit Large Storage Unit Signal Interpreter Light Armor Plating Assault Rifle Light Assault Rifle Peak State ------------ > --- POWER ------------ Light Ion Engine > --- PROPULSION ------- Aluminum Leg Aluminum Leg > --- UTILITY ---------- Large Storage Unit Sensor Array > --- WEAPON ----------- Assault Rifle Light Assault Rifle > --- INVENTORY -------- Light Ion Engine Light Ion Engine Light Treads Light Treads Wheel Wheel Hover Unit Signal Interpreter Medium Laser Beam Cannon [Rating: 8] Favorites ----------- Power Light Ion Engine Engine Light Ion Engine Propulsion Aluminum Leg Treads Light Treads Leg Aluminum Leg Hover Unit Hover Unit Utility Sensor Array Device Sensor Array Storage Small Storage Unit Processor Signal Interpreter Weapon Assault Rifle Energy Gun Medium Laser Energy Cannon Beam Cannon Ballistic Gun Assault Rifle Build | -11 -10 ------- Run | Yrd Mat Slots Evolved . | . . Power . | . . Propulsion . | . . Utility . | . . Weapon . | . . Parts Attached 16 | 6 10 Power 1 | 1 . Engine 1 | 1 . Core . | . . Reactor . | . . Propulsion 5 | 2 3 Treads 2 | 2 . Leg 2 | . 2 Wheel . | . . Hover 1 | . 1 Flight . | . . Utility 6 | 1 5 Device 1 | . 1 Storage 4 | 1 3 Processor 1 | . 1 Hackware . | . . Protection . | . . Artifact . | . . Weapon 4 | 2 2 Energy Gun 1 | 1 . Energy Cannon 1 | . 1 Ballistic Gun 2 | 1 1 Ballistic Cannon . | . . Launcher . | . . Special Weapon . | . . Impact Weapon . | . . Slashing Weapon . | . . Piercing Weapon . | . . Special Melee Weapon . | . . Unidentified Prototypes . | . . Parts Lost 6 | . 6 Power 1 | . 1 Propulsion 2 | . 2 Utility 1 | . 1 Weapon 2 | . 2 Highest Loss Streak 5 | . 5 To Critical Strikes . | . . Average Backups 8 | 4 9 Power 1 | . 1 Propulsion 3 | 2 4 Utility 1 | . 1 Weapon 1 | . 1 Tool/Special . | . . Unused Backups 6 | . 6 Power 2 | . 2 Propulsion 2 | . 2 Utility 2 | . 2 Weapon . | . . Tool/Special . | . . Average Slot Usage (%) 95 | . 95 Engine 12 | . 12 Treads 9 | . 9 Leg 17 | . 17 Device 12 | . 12 Storage 14 | . 14 Energy Gun 4 | . 4 Energy Cannon 1 | . 1 Ballistic Gun 21 | . 21 Peak Build Rating 8 | 6 8 Average Rating 6 | 5 7 On Entrance 3 | . 6 Avg Prop Armor Cover (%) . | . . Naked Turns . | . . Heaviest Build 47 | 12 47 Greatest Support 40 | 40 40 Greatest Overweight (x) 4 | . 4 Average Overweight (x) . | . . Largest Inventory Capacity 20 | 8 20 Average Capacity 13 | 7 14 Most Carried 12 | 6 12 Average Carried 8 | 4 9 Final Capacity 20 | 8 20 Final Carried 10 | 6 10 Class Distribution -------------------- 100% | Mutant Dominant Class ---------------- Mutant | -10/Materials Resources | -11 -10 ----------- Run | Yrd Mat Matter Collected 395 | 200 195 Remotely . | . . Salvage Created 441 | . 441 Parts 32 | . 32 Haulers Intercepted . | . . Recyclers Shooed . | . . Parts Field Recycled . | . . Retrieved Matter . | . . Parts Self-Destructed . | . . Prevented . | . . Parts Restored . | . . Kills | -11 -10 ------- Run | Yrd Mat Combat Hostiles Destroyed 8 | . 8 Guns 5 | . 5 Cannons 3 | . 3 Classes Destroyed 4 | . 4 Builder 1 | . 1 Operator 1 | . 1 Watcher 3 | . 3 Grunt 8 | . 8 Best Kill Streak 4 | . 4 Combat Bots Only 2 | . 2 Max Kills in Single Turn 2 | . 2 Gunslinging . | . . Exploded . | . . Melee . | . . Uniques/NPCs Destroyed . | . . Combat | -11 -10 -------- Run | Yrd Mat Hostile Shots Fired 118 | . 118 Missed 30 | . 30 Hits 88 | . 88 Projectile 88 | . 88 Damage Taken 963 | . 963 Core 250 | . 250 Absorbed by Shields . | . . Core Remaining (%) 100 | 100 . Volleys Fired 43 | . 43 Largest 2 | . 2 Hottest 110 | . 110 Shots Fired 84 | . 84 Gun 68 | . 68 Cannon 16 | . 16 Launcher . | . . Special . | . . Kinetic 42 | . 42 Thermal 42 | . 42 Explosive . | . . Electromagnetic . | . . Robot Hit Streak 9 | . 9 Robot Miss Streak 9 | . 9 Penetration Max . | . . Secondary Targets . | . . Shots Hit Robots 50 | . 50 Core Hits 21 | . 21 Critical Kills 1 | . 1 Critical Parts Destroyed . | . . Critical Strikes 2 | . 2 Burn 1 | . 1 Destroy 1 | . 1 Melee Attacks . | . . Impact . | . . Slashing . | . . Piercing . | . . Sneak Attacks . | . . Combat Hostiles . | . . Follow-up Attacks . | . . Damage Inflicted 690 | . 690 Guns 495 | . 495 Cannons 195 | . 195 Explosions . | . . Melee . | . . Ramming . | . . Kinetic 291 | . 291 Thermal 399 | . 399 Explosive . | . . Electromagnetic . | . . Impact . | . . Slashing . | . . Piercing . | . . Highest Corruption . | . . Average Corruption . | . . Corruption Purged . | . . Corruption Blocked . | . . Overload Shots . | . . Overflow Damage . | . . Projectiles . | . . Explosions . | . . Melee . | . . Knockbacks . | . . Impact . | . . Kinetic . | . . Secondary . | . . Self-Inflicted Damage . | . . Shots . | . . Rammed . | . . Targets Rammed . | . . Kicked . | . . Crushed . | . . Highest Temperature 279 | . 279 Average Temperature 86 | . 86 Received Heat Transfer 369 | . 369 Siege Activations . | . . Martial Activations . | . . Shielding Activations . | . . Robots Disrupted . | . . Combat Hostiles . | . . Robots Corrupted . | . . Combat Hostiles . | . . Parts Fried . | . . Impact Corruptions . | . . Robots Melted . | . . Combat Hostiles . | . . Parts Melted 2 | . 2 Heat Transferred 1073 | . 1073 Parts Sabotaged . | . . Parts Stolen . | . . Parts Stripped . | . . Power Chain Reactions . | . . Alert | -11 -10 ------- Run | Yrd Mat Maximum Alert Level . | . . Low Security (%) 100 | 100 100 Level 1 . | . . Level 2 . | . . Level 3 . | . . Level 4 . | . . Level 5 . | . . High Security . | . . Max Security . | . . Peak Influence 99 | . 99 Initial . | . . Average 11 | . 14 Influence Increases 274 | . 274 Destroy 0b10 Robot/C 160 | . 160 Destroy 0b10 Robot/NC 25 | . 25 Destroy Leader 36 | . 36 Successful Hack 8 | . 8 Disable Machine 45 | . 45 Influence Decreases 209 | . 209 Time Decay 149 | . 149 Lost Part 60 | . 60 Squads Dispatched 1 | . 1 Investigation . | . . Extermination . | . . Reinforcement 1 | . 1 Assault . | . . Garrison . | . . Intercept . | . . Searches Triggered . | . . Construction Impeded . | . . Haulers Reinforced . | . . Active Scanning Responses . | . . Cargo Convoy Interrupts . | . . Stealth | -11 -10 --------- Run | Yrd Mat Distress Signals 2 | . 2 Communications Jammed . | . . Distress Signals . | . . Times Spotted 17 | . 17 Peak Tracking Total 4 | . 4 Tactical Retreats . | . . Traps | -11 -10 ------- Run | Yrd Mat Traps Triggered . | . . Indirectly . | . . Trap Hack Attempts . | . . Triggered . | . . Disarmed . | . . Reprogrammed . | . . Reused . | . . Traps Extracted . | . . Installed . | . . Triggered . | . . Machines | -11 -10 ---------- Run | Yrd Mat Machines Disabled 3 | . 3 Max in Single Turn 1 | . 1 Machines Repaired . | . . Machines Dismantled . | . . Machines Sabotaged . | . . Overloaded Fab Kills . | . . Hacking | -11 -10 --------- Run | Yrd Mat Machines Accessed 1 | . 1 Terminals 1 | . 1 Fabricators . | . . Repair Stations . | . . Recycling Units . | . . Scanalyzers . | . . Garrison Access . | . . Total Hacks 2 | . 2 Successful 1 | . 1 Failed 1 | . 1 Catastrophic . | . . Database Lockouts . | . . Manual 1 | . 1 Terminals 2 | . 2 Fabricators . | . . Repair Stations . | . . Recycling Units . | . . Scanalyzers . | . . Garrison Access . | . . Terminal Hacks 1 | . 1 Repair Station Index 1 | . 1 Fabricator Hacks . | . . Repair Station Hacks . | . . Recycling Unit Hacks . | . . Scanalyzer . | . . Garrison Access Hacks . | . . Unauthorized Hacks . | . . Terminals . | . . Fabricators . | . . Repair Stations . | . . Recycling Units . | . . Scanalyzers . | . . Garrison Access . | . . Data Cores Recovered 1 | . 1 Used . | . . Hacking Detections . | . . Full Trace Events . | . . Feedback Events . | . . Feedback Blocked . | . . Robot Schematics Acquired . | . . Robots Built . | . . Authchips . | . . Time . | . . Total Robot Build Rating . | . . Part Schematics Acquired . | . . Parts Built . | . . Authchips . | . . Time . | . . Total Part Build Rating . | . . Part Studies Acquired . | . . Parts Repaired . | . . Time . | . . Parts Recycled . | . . Recycled Matter . | . . Retrieved Matter . | . . Retrieved Components . | . . Parts Scanalyzed . | . . Part Schematics Acquired . | . . Parts Damaged . | . . Bothacking | -11 -10 ------------ Run | Yrd Mat Used RIF Installer . | . . Robots Hacked . | . . Non-combat . | . . Combat . | . . Robot Hacks Applied . | . . Relay Couplers Released . | . . Fabnet Peak Effective % . | . . Robots Rewired . | . . Allies Hacked . | . . Hacks Repelled . | . . Allies | -11 -10 -------- Run | Yrd Mat Total Allies . | . . Largest Group . | . . Highest-Rated Group . | . . Highest-Rated Ally . | . . Total Orders . | . . Ally Attacks . | . . Total Damage . | . . Kills . | . . Allies Corrupted . | . . Allies Melted . | . . Intel | -11 -10 ------- Run | Yrd Mat Active Infowar (turns) 585 | . 585 Sensors 585 | . 585 Robot Analysis Total . | . . Derelict Logs Recovered . | . . Drone Launches . | . . Drone Recoveries . | . . Exploration | -11 -10 ------------- Run | Yrd Mat Turns Passed 824 | 163 661 Spaces Moved 373 | 110 263 Core 27 | 27 . Treads 185 | 83 102 Legs 159 | . 159 Wheels . | . . Hover 2 | . 2 Flight . | . . Fastest Speed 50 | 50 160 Average Speed 176 | 133 194 Slowest Speed 300 | 160 300 Overloaded Moves . | . . Propulsion Burnouts . | . . Robots Hopped . | . . Potential Cave-ins . | . . Cave-ins Triggered . | . . Exploration Rate (%) 20 | 5 35 Regions Visited 1 Branch Regions . Pre-discovered Areas . | . . Known Exits Taken . | . . Unknown Exits Taken 1 | 1 . Scrap Searched . | . . Spaces Dug . | . . Terrain Destroyed . | . . Melee . | . . Projectile . | . . AOE . | . . Terrain Rammed . | . . Walls Destroyed . | . . Machines Disabled . | . . Actions | -11 -10 --------- Run | Yrd Mat Total 457 | 126 331 Wait . | . . Move 372 | 109 263 Hop . | . . Pick Up 19 | 11 8 Fast Attach 2 | 1 1 Attach 7 | 5 2 Detach 2 | . 2 Swap 8 | . 8 Drop 4 | . 4 Fire 43 | . 43 Melee . | . . Ram . | . . Kick . | . . Crush . | . . Escape Stasis . | . . Rewire . | . . Trap . | . . Miscellaneous . | . . Route ------- -11/Scrapyard -10/Materials (discovered 1 exit: [*Min]) History --------- Turn | Location | Event 5 | -11/Scrapyard | Discovered new exit (range 15) 164 | -11/Scrapyard | Entered Materials 319 | -10/Materials | Build established: Mutant 704 | -10/Materials | Core integrity fell below 50% 709 | -10/Materials | Discovered new exit (range 14) 810 | -10/Materials | Core integrity fell below 20% 825 | -10/Materials | Destroyed by S-10 Pest with Light Assault Rifle Last Messages --------------- 00809_ K-01 Serf collects debris. 00809_ Aluminum Leg destroyed. 00809_ G-34 Mercenary destroyed. 00810_ K-01 Serf collects debris. 00812_ R-06 Scavenger collects Heat Sink. 00813_ O-16 Technician destroyed. 00814_ K-01 Serf collects debris. 00814_ R-06 Scavenger collects Ion Engine. 00814_ K-01 Serf collects debris. 00815_ K-01 Serf cleans the Terminal. 00816_ K-01 Serf collects debris. 00817_ R-06 Scavenger collects Sml. Laser. 00817_ S-10 Pest destroyed. 00817_ K-01 Serf collects debris. 00819_ Med. Laser destroyed. 00820_ K-01 Serf collects debris. 00821_ U-05 Engineer destroyed. 00822_ K-01 Serf collects debris. 00824_ Beam Cannon destroyed. 00824_ K-01 Serf collects debris. Map ----- +----------------------------------------------------+ | #????????????????????????????????????????????? | | ! #????????????????????????????????????????????? | | #????????????????????????????????????????????? | | [#????????????????????????????????????????????? | | #????????????????????????????????????????????? | | #????????????????????????????????????????????? | | #????????????????????????????????????????????? | | #########????????????????????????????????????????? | | # """ #????????????????????????????????????????? | | + """ #????????????????????????????????????????? | | # """ #?????????????? ???????????????????????? | | + #?????????????# t???????????????????????? | | # #?????????????# ???????????????????????? | | # #?????????????# ???????????????????????? | | ########?????????????# ???????????????????????? | | #???????????????????## ##?????????????????????? | | #???????????????????# ?????????????????????? | | #???????????????????# "?????????????????????? | | #???????????????????# !????########?????????? | | ###########?????????# < "???? ????????? | | # #?????????# u |???? ????????? | | # #?????????# u ???? ????????? | | # """ """ #?????????# k ???? ???????? | | # """ """ #??????????# !#???? ???????? | | # """=""" #??????????# =%##### !^ ???????? | | # = #??????????# @[ !%= "???????? | | # #??????????# =%=s *=r ???????? | | # #??????????# kks "" ???????? | | ###+#######??????????# k T" ????????? | | ############### "" r###???????????? | | % % ###???????????? | | ############## %=% / ????????????? | | ###+#########???????# % #?????????????? | | #?# #???????# "" #?????????????? | | #?# #???????# """ #?????????????? | | #?# #???????### """ #?????????????? | | #?# """ """ #?????????# % a#?????????????? | | #?# """ """ #?????????# % +?????????????? | | #?# """ """ #?????????# "" #?????????????? | | #?# #?????????# """ #?????????????? | | #?# #?????????# """ #?????????????? | | #?###########?????????# #?????????????? | | #?????????????????????# #?????????????? | | ##?????????????????????# """ #?????????????? | | ???????????????????????# """ ##?????????????? | | ???????????????????????# """ #??????????????? | | ???????????????????????# ?? #??????????????? | | ???????????????????????# ?? #??????????????? | | ???????????????????????# "?? #??????????????? | | ???????????????????????# ??? #??????????????? | +----------------------------------------------------+ Best States ------------- Heat Dissipation 25 Energy Generation 10 Energy Capacity 125 Matter Stores 300 Matter Capacity 300 Sight Range 16 Robot Scan Range 14 Terrain Scan Density 10 Evasion (%) 50 Recoil Reduction 2 Item Schematics ----------------- None Robot Schematics ------------------ None Fabricated ------------ Nothing Repaired ---------- Nothing Studied --------- None Alien Tech Used ----------------- None Achievements -------------- None Challenges ------------ None Game ------ Seed MetamassFluxNeutralizer Manual? 0 Play Time 00:14:09 Cumulative 1.3 hours Start 2026.08.28 @ 21:18:21 End 2026.08.28 @ 21:30:28 Sessions 1 Manual Loads 0 Difficulty Rogue Special Mode None Game No. 7 Rogue 7 Adventurer 0 Explorer 0 Win Type - Total 0 Types 0/0/0/0/0/0/0/0/0/0 Lore% 4 Gallery% 3 Achievement% 2 Wizard Run 0 Options --------- Layout 1 ASCII 0 Keyboard 0 Movement Mouse Keybinds 0 Fullscreen 1 Font 16/SmallcapsGlow Map View 27x19 Zoom Use 98% Tactical HUD 1 Map Filters NONE Filters NONE Steam 1 RUN: e2f18ba9-aad7-4f93-a2f2-556e976e4e02